bitfinex/quotes_ETHUSD_20241216
["timestamp","ask_amount","ask_price","bid_price","bid_amount"]
[1734311429640,2.50129,3998.0,3996.4,2.50223]
[1734311429844,0.7509,3998.1,3996.6,0.7748]
[1734311430146,0.7509,3998.1,3995.3,2.58983034]
[1734311430147,2.5012,3998.1,3996.8,0.7899]
[1734311430307,0.50910303,3998.0,3996.8,0.7899]
[1734311430713,0.50910303,3998.0,3996.9,0.07815132]
[1734311430921,0.50910303,3998.0,3996.8,0.7899]
[1734311430922,0.50910303,3998.0,3997.0,0.07815132]
[1734311431232,2.50103,3998.4,3997.0,0.02501746]
[1734311431545,2.50103,3998.4,3997.1,0.07814725]
[1734311431693,0.8062,3999.1,3997.2,0.10316096]
[1734311431893,2.58983034,3999.3,3997.3,0.87504725]
[1734311432095,2.50051,3999.2,3997.7,0.7741]
[1734311432321,0.27831585,3998.9,3997.7,0.7741]
[1734311432527,2.50071,3998.9,3997.7,0.7741]
[1734311432840,3.28134,4000.1,3997.9,0.7741]
[1734311433046,0.7785,4000.7,3998.2,0.8217]
[1734311433251,2.4998,4000.4,3998.4,0.8217]
[1734311433545,2.4998,4000.4,3998.2,2.50111]
[1734311433546,2.49982,4000.3,3998.9,0.8217]
[1734311433749,0.249982,4000.2,3998.9,0.8217]
[1734311434241,2.49972,4000.5,3999.0,0.7675]
[1734311434442,0.33683303,4000.6,3998.5,0.02500001]
[1734311434645,2.58983034,4001.3,3998.4,0.51022321]
[1734311434646,2.58983034,4001.3,3999.2,0.7675]
[1734311434830,2.58983034,4001.3,3998.6,2.52586924]
[1734311434831,2.49931,4001.1,3999.6,0.7675]
[1734311435317,0.25898303,4001.2,3999.6,0.7675]
[1734311435502,2.49931,4001.1,3999.6,0.7675]
[1734311435698,0.249896,4001.6,3999.6,2.50024]
[1734311436056,2.4987,4002.1,4000.7,0.7675]
[1734311436198,2.49878,4002.0,4000.7,0.7675]
[1734311436396,2.49837,4002.6,4000.7,0.7675]
[1734311436397,2.49859,4002.3,4000.7,0.7675]
[1734311436601,2.49859,4002.3,4000.7,3.29203038]
[1734311436797,2.49864,4002.2,4000.7,0.79249038]
[1734311437026,2.49837,4002.6,4000.7,0.7675]
[1734311437258,2.9320788,4003.0,4000.7,0.7675]
[1734311437259,2.49861,4002.3,4000.7,0.7675]
[1734311437408,0.50867253,4002.9,4000.7,0.7675]
[1734311437409,0.29320788,4002.9,4000.7,0.7675]
[1734311437739,0.29320788,4002.9,4000.3,0.49026448]
[1734311437740,2.49853,4002.4,4000.9,0.8095]
[1734311437945,2.9320788,4003.0,4000.9,0.8095]
[1734311438261,1.25666881,4003.3,4000.9,0.8095]
[1734311438262,2.49913,4001.4,4000.9,0.8095]
[1734311438414,2.49868,4002.1,4000.9,0.8095]
[1734311438616,0.7565,4002.2,4000.9,0.8095]
[1734311438814,2.49924,4001.3,4000.9,0.8095]
[1734311439014,2.749164,4001.3,4000.9,0.8095]
[1734311439831,0.249924,4001.3,4000.9,0.8095]
[1734311440033,2.49933,4001.1,4000.9,0.8095]
[1734311440279,2.49918,4001.4,4000.9,0.8095]
[1734311440496,2.49831,4002.7,4000.9,0.8095]
[1734311440654,2.49861,4002.3,4001.0,0.02498844]
[1734311441032,2.49861,4002.3,4000.9,0.8095]
[1734311441289,2.49884,4001.9,4000.9,0.8095]
[1734311441546,0.49205721,4003.3,4000.9,0.8095]
[1734311441749,2.49867,4002.2,4000.9,0.8095]
[1734311442503,2.49884,4001.9,4000.9,0.8095]
[1734311442967,3.1176636,4003.2,4000.9,0.8095]
[1734311442968,2.9320788,4002.8,4000.9,0.8095]
[1734311443141,2.49907,4001.5,4000.9,0.8095]
[1734311443583,2.4989,4001.8,4000.9,0.8095]
[1734311443889,2.4987,4002.1,4000.9,0.8095]
[1734311444376,0.54304488,4002.5,4000.9,0.8095]
[1734311444604,2.49895,4001.7,4000.9,0.8095]
[1734311444755,2.49903,4001.6,4000.9,0.8095]
[1734311444955,0.54304488,4002.5,4000.9,0.8095]
[1734311445151,2.49856,4002.3,4000.9,0.8095]
[1734311445467,0.30416049,4002.2,4000.9,0.8095]
[1734311446036,2.49868,4002.1,4000.9,0.8095]
[1734311446238,2.49879,4002.0,4000.9,0.8095]
[1734311446464,2.49882,4001.9,4000.9,0.8095]
[1734311447495,2.49882,4001.9,4000.7,0.12385129]
[1734311447496,2.49863,4002.2,4001.0,0.7726]
[1734311447844,0.54304488,4002.5,4001.0,0.7726]
[1734311448157,2.49876,4002.0,4001.0,0.7726]
[1734311449741,2.49895,4001.7,4001.0,0.7726]
[1734311450393,2.49879,4002.0,4001.0,0.7726]
[1734311450953,0.54304488,4002.5,4001.0,0.7726]
[1734311451239,2.49877,4002.0,4001.0,0.7726]
[1734311451553,3.04150488,4002.5,4001.0,0.7726]
[1734311451554,0.54304488,4002.5,4001.0,0.7726]
[1734311451737,2.49889,4001.8,4001.0,0.7726]
[1734311451942,2.49931,4001.1,4001.0,0.7726]
[1734311452144,2.49908,4001.5,3999.1,2.50055]
[1734311452376,2.49964,4000.6,3999.5,0.7565]
[1734311452573,2.9320788,4001.6,3999.7,0.7602]
[1734311452574,2.49969,4000.5,3999.7,0.7602]
[1734311452973,2.9320788,4001.6,3999.7,0.7602]
[1734311452974,2.49949,4000.9,3999.7,0.7602]
[1734311453288,2.49921,4001.3,3999.9,2.50002]
[1734311453587,2.49921,4001.3,4000.0,0.83828565]
[1734311453883,2.49933,4001.1,4000.2,0.7693]
[1734311454089,0.7806,4002.1,4000.2,0.7693]
[1734311454277,2.49881,4001.9,4000.2,0.7693]
[1734311454473,2.49962,4000.7,4000.2,0.7693]
[1734311454673,2.49881,4001.9,4000.2,0.7693]
[1734311454674,2.49962,4000.6,4000.2,0.7693]
[1734311455951,2.49963,4000.6,4000.2,0.7693]
[1734311457079,2.49979,4000.4,4000.2,0.7693]
[1734311457288,2.49979,4000.4,3999.3,0.12301654]
[1734311457489,2.59103239,4000.5,3999.4,0.07809808]
[1734311457848,2.59103239,4000.5,3999.1,0.7881]
[1734311457849,2.50024,3999.7,3999.5,0.07809808]
[1734311458086,2.50033,3999.5,3999.1,0.7881]
[1734311458447,2.50033,3999.5,3999.2,0.07811201]
[1734311458604,2.50039,3999.4,3999.3,0.07811201]
[1734311458805,2.50039,3999.4,3999.2,0.07811201]
[1734311459163,3.000433,3999.4,3999.3,0.07811862]
[1734311459495,2.50094,3998.5,3997.8,0.7881]
[1734311459798,2.50109,3998.3,3997.9,0.1562531]
[1734311460009,2.50119,3998.1,3998.0,0.1562531]
[1734311460491,2.50119,3998.1,3998.0,0.07812536]
[1734311460805,2.50176,3997.2,3997.0,0.8315]
[1734311461101,2.50164,3997.4,3997.1,0.15630352]
[1734311461302,2.59103239,3998.0,3997.1,0.15630352]
[1734311461466,5.34243339,3998.0,3997.2,0.15630352]
[1734311461670,2.50163,3997.4,3997.2,0.07815176]
[1734311461872,2.50163,3997.4,3997.3,0.07815176]
[1734311462067,5.34282539,3997.4,3997.3,0.07815176]
[1734311462289,2.84119539,3997.4,3995.6,0.8315]
[1734311462519,2.50225,3996.5,3995.6,0.8315]
[1734311462676,2.50201,3996.8,3995.7,0.15634614]
[1734311462876,2.50207,3996.7,3995.7,0.15634614]
[1734311463108,2.59103239,3996.9,3995.8,0.15634614]
[1734311463320,3.10031163,3996.9,3995.9,0.15634801]
[1734311463479,2.50228,3996.4,3996.0,0.07817346]
[1734311463814,2.50228,3996.4,3996.1,0.07817346]
[1734311464114,2.50228,3996.4,3996.2,0.07817346]
[1734311464421,2.50228,3996.4,3995.6,0.8315]
[1734311464619,2.50205,3996.8,3995.7,0.07817668]
[1734311464819,2.5019,3997.0,3995.8,0.07817668]
[1734311464974,3.3100873,3997.3,3995.9,0.07817668]
[1734311465177,2.50216,3996.6,3995.6,0.8315]
[1734311465483,0.35602503,3997.2,3995.6,0.8315]
[1734311465719,2.50181,3997.1,3995.6,0.8315]
[1734311466225,2.50216,3996.6,3995.6,0.8315]
[1734311467082,2.50197,3996.9,3995.7,0.02502431]
[1734311467278,2.50197,3996.9,3995.5,0.7597]
[1734311467724,2.50203,3996.8,3995.5,0.7597]
[1734311467887,0.3526741,3997.7,3995.5,0.7597]
[1734311467888,2.50156,3997.5,3995.5,0.7597]
[1734311468235,2.50232,3996.3,3995.5,0.7597]
[1734311468415,2.5019,3997.0,3995.5,0.7597]
[1734311468732,2.50201,3996.8,3995.5,0.7597]
[1734311468880,2.9404219,3997.3,3995.5,0.7597]
[1734311469081,2.9404219,3996.1,3994.9,0.7521]
[1734311469279,0.29404219,3996.0,3994.9,0.7521]
[1734311469527,2.50256,3995.9,3994.9,0.7521]
[1734311469737,2.50256,3995.9,3994.4,0.7524]
[1734311469738,0.7851,3995.8,3994.4,0.7524]
[1734311469956,2.50332,3994.7,3994.4,0.7524]
[1734311470234,0.35817022,3995.7,3994.4,0.7524]
[1734311470235,2.50313,3995.0,3994.4,0.7524]
[1734311471235,2.9404219,3995.5,3994.4,0.7524]
[1734311471392,2.50301,3995.2,3994.4,0.7524]
[1734311472236,2.9404219,3995.5,3994.4,0.7524]
[1734311472237,2.50314,3995.0,3994.4,0.7524]
[1734311472452,2.50249,3996.1,3993.2,0.93025863]
[1734311472453,0.7938,3994.8,3993.2,0.93025863]
[1734311472745,0.7938,3994.8,3993.2,0.8061]
[1734311472746,2.50365,3994.2,3993.2,0.8061]
[1734311472949,0.7938,3994.8,3993.2,0.8061]
[1734311472950,2.50347,3994.5,3993.2,0.8061]
[1734311473946,0.7938,3994.8,3993.2,0.8061]
[1734311473947,2.50365,3994.2,3993.2,0.8061]
[1734311474089,0.42460698,3994.7,3993.2,0.8061]
[1734311474295,2.50366,3994.2,3993.2,0.8061]
[1734311474509,2.92793698,3994.7,3993.2,0.8061]
[1734311474510,2.50373,3994.1,3993.2,0.8061]
[1734311474833,2.50377,3994.0,3993.2,0.8061]
[1734311475509,2.50379,3994.0,3993.2,0.8061]
[1734311475713,0.71740067,3994.6,3992.7,0.8173]
[1734311475915,2.50379,3994.0,3992.7,0.8173]
[1734311476712,0.7938,3994.8,3992.8,0.02504271]
[1734311477003,0.7938,3994.8,3992.9,0.8253]
[1734311477305,2.5037,3994.1,3992.9,0.8253]
[1734311477642,2.50377,3994.0,3992.9,0.8253]
[1734311477806,2.5036,3994.3,3992.9,0.8253]
[1734311478008,0.42460698,3994.7,3992.9,0.8253]
[1734311478221,2.50373,3994.1,3992.9,0.8253]
[1734311478722,2.50379,3994.0,3992.9,0.8253]
[1734311478924,0.7938,3994.8,3992.9,0.8253]
[1734311479126,2.50358,3994.3,3992.9,0.8253]
[1734311479515,0.7938,3994.8,3992.9,0.8253]
[1734311479516,2.50365,3994.2,3992.9,0.8253]
[1734311479936,2.50348,3994.5,3992.9,0.8253]
[1734311480357,2.50353,3994.4,3992.9,0.8253]
[1734311480636,0.67493098,3994.7,3992.9,0.85034139]
[1734311480853,3.29002,3995.2,3993.0,0.8022]
[1734311481100,2.9404219,3995.5,3993.1,0.8022]
[1734311481239,2.9404219,3995.5,3993.8,0.8022]
[1734311481442,2.50363,3994.2,3993.3,0.8022]
[1734311481745,3.29029,3994.8,3993.3,0.8022]
[1734311481945,0.50049437,3994.7,3993.3,0.8022]
[1734311482142,0.787,3994.8,3993.3,0.8022]
[1734311482381,2.9404219,3994.9,3993.3,3.30636]
[1734311482583,0.49273438,3995.1,3993.5,0.7707]
[1734311482792,2.5032,3994.9,3993.5,0.7707]
[1734311483079,2.5032,3994.9,3992.8,2.50444]
[1734311483080,2.50316,3995.0,3993.6,0.8061]
[1734311483686,2.9404219,3994.9,3993.6,0.8061]
[1734311483991,2.50364,3994.2,3993.6,0.8061]
[1734311484342,3.0016216,3994.8,3993.6,0.8061]
[1734311484343,2.50349,3994.5,3993.6,0.8061]
[1734311484993,2.50349,3994.5,3992.5,0.50279734]
[1734311484994,2.9404219,3995.5,3993.2,0.7549]
[1734311485285,0.48922987,3995.3,3993.7,0.7549]
[1734311485589,2.50277,3995.6,3994.1,0.7549]
[1734311485784,2.50277,3995.6,3994.1,3.25857]
[1734311485785,2.753047,3995.6,3994.1,3.25857]
[1734311485974,0.250277,3995.6,3994.2,2.50362]
[1734311486192,2.59837299,3995.8,3994.4,0.7866]
[1734311486353,2.50244,3996.1,3994.7,0.7866]
[1734311486557,2.50251,3996.0,3994.8,0.07819179]
[1734311486795,0.56112209,3996.0,3994.9,0.07819179]
[1734311486992,0.56112209,3996.0,3994.7,0.7866]
[1734311487298,0.56112209,3996.0,3994.8,0.2032938]
[1734311487598,0.56112209,3996.0,3994.9,0.07818992]
[1734311487890,0.56112209,3996.0,3994.8,0.12510388]
[1734311487891,2.50245,3996.1,3995.0,0.07818992]
[1734311488099,2.59837299,3996.3,3995.1,0.86478992]
[1734311488299,2.59837299,3996.3,3995.2,0.2032938]
[1734311488510,5.36053029,3996.3,3995.3,0.07818992]
[1734311488706,2.50238,3996.2,3995.4,0.07818992]
[1734311488859,2.50238,3996.2,3995.5,0.07818992]
[1734311489059,2.50257,3995.9,3995.1,0.7866]
[1734311489294,2.50257,3995.9,3995.6,0.07818986]
[1734311489504,3.03848903,3996.2,3995.7,0.07818986]
[1734311489797,2.50252,3996.0,3995.1,0.7866]
[1734311490097,2.50257,3995.9,3995.2,0.20329805]
[1734311490293,0.7905,3996.1,3995.3,0.20329805]
[1734311490503,2.50263,3995.8,3995.4,0.07819156]
[1734311490678,0.41847693,3996.0,3995.1,0.7866]
[1734311490872,0.41847693,3996.0,3995.2,0.07819759]
[1734311491215,2.50269,3995.7,3995.3,0.07819759]
[1734311491499,2.50269,3995.7,3993.6,2.50396]
[1734311491500,2.50282,3995.5,3995.4,0.07819759]
[1734311491702,0.55195399,3995.7,3994.7,0.12512683]
[1734311491900,2.50317,3995.0,3994.8,0.07820634]
[1734311492061,2.50306,3995.1,3994.9,0.07820821]
[1734311492257,2.59837299,3995.2,3993.6,0.7925]
[1734311492492,2.59837299,3995.2,3993.5,0.49612418]
[1734311492493,2.59837299,3995.2,3993.8,0.7925]
[1734311492697,2.50313,3995.0,3993.9,0.28156637]
[1734311492899,2.50313,3995.0,3994.0,0.28156637]
[1734311493065,2.50313,3995.0,3993.7,0.12513658]
[1734311493066,2.59837299,3995.2,3994.1,1.05356637]
[1734311493278,2.59837299,3995.7,3994.3,0.772]
[1734311493491,2.50284,3995.5,3994.4,0.28156637]
[1734311493800,2.50284,3995.5,3994.5,0.28156637]
[1734311494006,2.50284,3995.5,3994.3,0.772]
[1734311494007,2.50295,3995.3,3994.6,0.28156637]
[1734311494302,2.50295,3995.3,3994.3,0.772]
[1734311494303,2.50327,3994.8,3994.7,0.20335421]
[1734311494603,2.753597,3994.8,3994.7,0.07821316]
[1734311495303,2.5035,3994.4,3993.8,0.772]
[1734311495510,2.5035,3994.4,3993.9,0.20336293]
[1734311495804,2.5035,3994.4,3994.0,0.15643303]
[1734311496004,2.5035,3994.4,3994.1,0.15643303]
[1734311496262,2.5035,3994.4,3994.2,0.07821652]
[1734311496467,2.5035,3994.4,3993.8,0.772]
[1734311496666,2.5035,3994.4,3993.9,0.15643554]
[1734311496868,2.5035,3994.4,3994.0,0.15643554]
[1734311497033,2.50357,3994.3,3994.1,0.07821777]
[1734311497227,2.50369,3994.1,3993.7,0.12513658]
[1734311497423,2.50388,3993.8,3991.9,3.33376]
[1734311497725,2.50416,3993.4,3992.0,0.9851754]
[1734311497948,3.37267299,3994.2,3991.7,0.13032448]
[1734311497949,2.50399,3993.7,3992.2,0.8287]
[1734311498157,0.51035604,3994.4,3993.0,0.8287]
[1734311498463,2.59837299,3994.9,3993.2,0.8287]
[1734311498634,5.10159299,3994.9,3993.5,3.33276]
[1734311498837,2.59837299,3995.4,3993.9,0.8287]
[1734311499161,0.7743,3995.6,3993.9,0.8287]
[1734311499162,2.59837299,3994.8,3994.0,0.15643846]
[1734311499520,2.59837299,3994.8,3993.9,0.8287]
[1734311499521,5.10167299,3994.8,3994.1,0.15643846]
[1734311499738,5.10167299,3994.8,3994.2,0.15643846]
[1734311499948,2.59837299,3995.3,3994.3,0.15643846]
[1734311500130,2.59837299,3995.3,3993.9,0.8287]
[1734311500131,2.59837299,3995.3,3994.4,0.15643846]
[1734311500331,0.49694011,3995.7,3994.6,0.8262]
[1734311500587,2.59837299,3995.8,3994.6,0.8262]
[1734311500588,2.59837299,3995.8,3994.7,0.15643846]
[1734311500876,2.50277,3995.6,3994.8,0.15643846]
[1734311501028,2.50277,3995.6,3994.9,0.15643846]
[1734311501232,2.50277,3995.6,3995.0,0.15643846]
[1734311501477,2.50277,3995.6,3995.1,0.15643846]
[1734311501683,3.01375996,3996.1,3995.1,0.15643846]
[1734311501684,0.51131996,3996.1,3995.2,0.07821923]
[1734311501832,2.50245,3996.1,3995.3,0.7772]
[1734311502039,2.50245,3996.1,3995.3,0.93358585]
[1734311502394,2.50245,3996.1,3995.4,0.15638585]
[1734311502536,2.50245,3996.1,3995.3,0.7772]
[1734311502537,2.50245,3996.1,3995.5,0.15638585]
[1734311502737,2.59837299,3996.3,3995.6,0.15638585]
[1734311502977,2.59837299,3996.3,3995.7,0.15638585]
[1734311502978,5.10100299,3995.8,3995.7,0.15638585]
[1734311503151,5.10100299,3995.8,3993.5,2.50404]
[1734311503152,5.10100299,3995.8,3994.9,0.7596]
[1734311503334,5.61110329,3995.8,3995.0,0.15639778]
[1734311503536,5.61110329,3995.8,3995.1,0.07819889]
[1734311503740,5.61110329,3995.8,3994.9,0.7596]
[1734311503933,2.50269,3995.7,3995.0,0.15640889]
[1734311504239,5.61110329,3995.8,3994.9,0.7596]
[1734311504436,5.61110329,3995.8,3995.0,0.15640849]
[1734311504734,5.61110329,3995.8,3994.9,0.7596]
[1734311505062,5.61110329,3995.8,3995.0,0.15640783]
[1734311505265,2.50286,3995.5,3995.1,0.15640586]
[1734311505474,2.50286,3995.5,3995.2,0.07820293]
[1734311505633,2.50286,3995.5,3994.9,0.7596]
[1734311505837,2.50286,3995.5,3995.0,0.15639854]
[1734311506034,2.50286,3995.5,3995.1,0.15639854]
[1734311506284,0.56113333,3995.5,3994.9,0.7596]
[1734311506452,2.50321,3994.9,3994.5,0.7596]
[1734311506650,2.50287,3995.4,3994.6,0.15641918]
[1734311506651,2.50329,3994.8,3994.6,0.15641918]
[1734311506866,2.50329,3994.8,3994.7,0.07820959]
[1734311507052,2.50303,3995.2,3994.0,0.7955]
[1734311507266,2.50337,3994.7,3994.1,0.15642626]
[1734311507467,2.50352,3994.4,3994.2,0.15642626]
[1734311507651,2.50352,3994.4,3994.3,0.15642626]
[1734311507854,2.50352,3994.4,3994.0,0.7955]
[1734311507855,2.50358,3994.3,3994.0,0.7955]
[1734311508052,2.50358,3994.3,3994.1,0.07822267]
[1734311508251,2.50358,3994.3,3994.0,0.7955]
[1734311508481,2.50358,3994.3,3994.1,0.07822193]
[1734311508701,0.250358,3994.3,3993.5,0.7712]
[1734311508988,0.7685,3994.6,3992.5,2.54817458]
[1734311508989,2.50395,3993.7,3993.6,0.07822838]
[1734311509138,2.50395,3993.7,3992.3,2.04415976]
[1734311509139,2.50425,3993.3,3992.6,0.8058]
[1734311509344,2.50425,3993.3,3992.7,0.15647925]
[1734311509538,2.50425,3993.3,3992.8,0.15647925]
[1734311509739,2.50425,3993.3,3992.9,0.15647925]
[1734311509968,2.50425,3993.3,3993.0,0.15647925]
[1734311510289,2.50425,3993.3,3992.6,0.8058]
[1734311510585,2.59837299,3993.8,3992.7,0.15647804]
[1734311510586,2.50426,3993.2,3992.7,0.15647804]
[1734311510779,2.50448,3992.9,3992.8,0.15647804]
[1734311510979,2.50448,3992.9,3992.6,0.8058]
[1734311510980,2.50425,3993.2,3992.6,0.8058]
[1734311511139,2.50451,3992.8,3992.6,0.8058]
[1734311511780,2.50435,3993.1,3992.6,0.8058]
[1734311511952,2.59837299,3993.3,3992.6,0.8058]
[1734311512279,2.50445,3992.9,3992.6,0.8058]
[1734311512492,2.50409,3993.5,3992.6,0.8058]
[1734311512669,3.10578621,3993.9,3992.6,0.8058]
[1734311512983,2.59837299,3993.4,3992.6,0.8058]
[1734311513142,2.50438,3993.0,3992.6,0.8058]
[1734311513337,2.59837299,3993.4,3992.6,0.8058]
[1734311513338,2.5043,3993.2,3992.6,0.8058]
[1734311513586,0.50741322,3993.9,3992.6,0.8058]
[1734311513883,2.50402,3993.6,3992.6,0.8058]
[1734311514190,2.50393,3993.8,3992.6,0.8058]
[1734311514355,2.50367,3994.2,3992.8,0.771]
[1734311514537,0.758,3994.4,3992.8,0.771]
[1734311514895,0.758,3994.4,3992.9,1.0349526]
[1734311515042,2.50372,3994.1,3993.0,0.15646412]
[1734311515243,2.50372,3994.1,3993.1,0.15646412]
[1734311515444,2.50372,3994.1,3992.8,0.771]
[1734311515670,2.50372,3994.1,3993.0,0.8043]
[1734311515869,2.50372,3994.1,3993.1,0.07822771]
[1734311516075,2.50359,3994.3,3993.0,0.8043]
[1734311516387,2.50363,3994.2,3993.0,0.8043]
[1734311516958,2.59837299,3994.0,3993.0,0.8043]
[1734311517962,2.50414,3993.4,3993.0,0.8043]
[1734311518199,2.50427,3993.2,3992.0,0.7767]
[1734311518362,2.50436,3993.1,3992.0,0.7767]
[1734311518560,2.50442,3993.0,3992.0,0.7767]
[1734311520190,2.50445,3992.9,3992.0,0.7767]
[1734311521214,2.50383,3993.9,3992.2,0.8161]
[1734311521369,2.50383,3993.9,3992.4,0.8161]
[1734311521576,2.50383,3993.9,3992.8,0.8161]
[1734311521916,2.59837299,3994.0,3992.8,0.8161]
[1734311521917,2.50389,3993.8,3992.8,0.8161]
[1734311522211,2.59837299,3994.5,3992.9,2.66088426]
[1734311522369,2.50363,3994.2,3993.0,0.7768]
[1734311524117,2.59837299,3994.5,3992.5,0.49531123]
[1734311524118,2.59837299,3994.5,3993.4,0.7755]
[1734311524412,2.59837299,3995.0,3993.4,0.7755]
[1734311524709,2.50328,3994.8,3993.4,3.27962]
[1734311524912,2.50328,3994.8,3993.5,0.7755]
[1734311525068,2.50332,3994.7,3993.5,0.7755]
[1734311525267,5.10154299,3995.0,3993.7,0.7755]
[1734311525863,0.50507427,3995.3,3994.1,0.7755]
[1734311526073,2.59837299,3995.5,3994.1,0.7755]
[1734311526074,5.10122299,3995.5,3994.1,3.27916]
[1734311526274,2.59837299,3995.5,3994.1,3.27916]
[1734311526870,2.59837299,3995.5,3994.2,3.27911]
[1734311527071,2.59837299,3995.5,3994.3,0.7755]
[1734311527519,5.10120299,3995.5,3994.3,0.7755]
[1734311528027,2.59837299,3995.0,3993.2,1.02207988]
[1734311528224,2.50347,3994.5,3993.3,0.7755]
[1734311528527,2.5035,3994.4,3993.3,0.7755]
[1734311529121,2.50335,3994.7,3993.3,0.7755]
[1734311529324,2.5034,3994.6,3993.3,0.7755]
[1734311529683,0.5869143,3994.9,3993.3,0.7755]
[1734311529684,2.50344,3994.5,3993.3,0.7755]
[1734311529887,2.59837299,3994.5,3993.3,0.7755]
[1734311530326,2.50363,3994.2,3993.3,0.7755]
[1734311531033,2.5037,3994.1,3993.3,0.7755]
[1734311531438,2.50375,3994.0,3993.3,0.7755]
[1734311531804,2.59837299,3994.5,3993.3,0.7755]
[1734311532012,2.50377,3994.0,3993.3,0.7755]
[1734311532336,2.59837299,3994.0,3993.3,0.7755]
[1734311532539,2.50408,3993.5,3992.3,0.7975]
[1734311532743,2.50408,3993.5,3992.4,0.15647302]
[1734311532924,2.50408,3993.5,3992.5,0.15647302]
[1734311533087,2.50408,3993.5,3992.3,0.7975]
[1734311533288,2.50408,3993.5,3992.4,0.15647664]
[1734311533489,5.10213299,3994.0,3992.5,0.15647664]
[1734311533725,2.50402,3993.6,3992.6,0.15647664]
[1734311534031,2.50407,3993.5,3992.3,0.7975]
[1734311534219,2.50407,3993.5,3992.4,0.15647132]
[1734311534388,2.50407,3993.5,3992.5,0.15647132]
[1734311534589,2.50407,3993.5,3992.6,0.15647132]
[1734311534788,2.50407,3993.5,3992.3,0.7975]
[1734311535030,2.50407,3993.5,3992.4,0.15647267]
[1734311535185,0.48987602,3993.8,3992.5,0.07823634]
[1734311535389,0.48987602,3993.8,3992.6,0.07823634]
[1734311535585,0.48987602,3993.8,3992.6,0.15647487]
[1734311535885,2.50386,3993.9,3992.8,0.7769]
[1734311536090,2.59837299,3994.0,3992.8,0.7769]
[1734311536091,2.59837299,3994.0,3992.9,0.07823302]
[1734311536348,2.59837299,3994.0,3992.8,0.7769]
[1734311536349,2.59837299,3994.0,3993.0,0.15646457]
[1734311536541,2.50389,3993.8,3992.8,0.7769]
[1734311536692,2.59837299,3994.0,3992.9,0.15646206]
[1734311536897,2.59837299,3994.0,3993.0,0.15646206]
[1734311536898,5.10214299,3994.0,3993.0,0.15646206]
[1734311537121,5.10214299,3994.0,3993.1,0.15646206]
[1734311537324,2.59837299,3994.0,3992.8,0.7769]
[1734311537526,2.59837299,3994.0,3992.9,0.15645936]
[1734311537752,2.59837299,3994.0,3993.0,0.15645936]
[1734311538054,2.90813418,3994.0,3992.8,0.7769]
[1734311538211,2.50395,3993.7,3992.9,0.15646789]
[1734311538416,2.50395,3993.7,3992.8,0.7769]
[1734311538655,2.50394,3993.7,3992.9,0.15646625]
[1734311538816,2.50402,3993.6,3992.8,0.7769]
[1734311540124,2.50396,3993.7,3992.8,0.7769]
[1734311540321,2.59837299,3994.0,3992.9,0.07823304]
[1734311540644,2.50417,3993.4,3992.8,0.7769]
[1734311540830,0.8168,3993.9,3992.8,0.7769]
[1734311541032,2.50432,3993.1,3992.8,0.7769]
[1734311541399,0.8168,3993.9,3992.8,0.7769]
[1734311541539,0.42241731,3993.9,3992.8,0.7769]
[1734311541745,2.90813418,3994.0,3992.8,0.7769]
[1734311541746,2.50405,3993.6,3992.8,0.7769]
[1734311541913,1.3269743,3994.4,3992.9,0.0782347]
[1734311542115,2.50368,3994.2,3993.0,0.92596616]
[1734311542352,2.50368,3994.2,3993.1,0.15646616]
[1734311542652,2.50368,3994.2,3993.0,0.7695]
[1734311542653,2.59837299,3994.5,3993.2,0.15646616]
[1734311542840,2.50376,3994.0,3993.0,0.7695]
[1734311543046,2.50376,3994.0,3993.1,0.15645632]
[1734311543245,2.50376,3994.0,3993.2,0.15645632]
[1734311543435,2.50376,3994.0,3993.0,0.7695]
[1734311543635,2.50382,3993.9,3993.1,0.15645524]
[1734311543960,2.50382,3993.9,3993.2,0.07822762]
[1734311544118,2.50382,3993.9,3993.0,0.7695]
[1734311544469,2.50382,3993.9,3993.1,0.15646068]
[1734311544630,2.50382,3993.9,3993.1,0.07823034]
[1734311544961,2.50382,3993.9,3993.0,0.7695]
[1734311545166,2.50382,3993.9,3993.1,0.15645772]
[1734311545368,2.50382,3993.9,3993.2,0.15645772]
[1734311545573,2.50382,3993.9,3993.0,0.7695]
[1734311545733,2.50382,3993.9,3993.1,0.15645942]
[1734311546074,2.50382,3993.9,3993.0,0.7695]
[1734311546246,2.59837299,3994.5,3993.1,0.15645876]
[1734311546429,2.59837299,3994.5,3993.3,0.8239]
[1734311546626,2.50365,3994.2,3993.3,0.8239]
[1734311547265,2.59837299,3994.5,3993.3,0.8239]
[1734311547569,2.50352,3994.4,3993.4,0.15644776]
[1734311547871,2.59837299,3994.5,3993.3,0.8239]
[1734311548042,2.50351,3994.4,3993.4,0.15644457]
[1734311548251,2.59837299,3994.5,3993.3,0.8239]
[1734311548252,2.50357,3994.3,3993.3,0.8239]
[1734311548584,2.59837299,3994.5,3993.4,0.15644742]
[1734311548761,2.59837299,3994.5,3993.3,0.8239]
[1734311549072,2.59837299,3994.5,3993.4,0.15644804]
[1734311549275,2.59837299,3994.5,3993.6,0.7939]
[1734311549634,2.50335,3994.7,3993.6,0.7939]
[1734311549837,3.01120803,3994.9,3993.6,0.7939]
[1734311550147,2.50331,3994.8,3993.6,0.7939]
[1734311550330,2.50331,3994.8,3993.1,0.02503823]
[1734311550331,2.59837299,3995.0,3993.8,0.7939]
[1734311550533,2.50331,3994.8,3993.8,0.7939]
[1734311550928,2.59837299,3995.0,3993.9,0.15643112]
[1734311551176,2.59837299,3995.0,3993.8,0.7939]
[1734311551177,2.50345,3994.5,3993.8,0.7939]
[1734311551535,2.59837299,3995.0,3993.8,0.7939]
[1734311551735,2.59837299,3995.5,3994.0,0.757]
[1734311551932,1.03871311,3995.9,3994.3,0.757]
[1734311552269,2.07742623,3996.3,3994.3,0.757]
[1734311552270,5.10070299,3996.3,3994.6,0.7715]
[1734311552431,5.10070299,3996.3,3994.5,2.50342]